Cogmind - Beta 17 @@@ ROGUE MODE // 2026.07.27 @ 04:43:59 Player: MrFartsburg Result: Destroyed by X-57 Shotgunner with Shotgun Performance ------------- Evolutions (2) 1000 Regions Visited (5) 1000 Robots Destroyed (56) 280 Value Destroyed (1609) 1609 Prototype IDs (5) 100 Alien Tech Used (0) 0 Bonus (33) 33 TOTAL SCORE: 4022 Bonus ------- Follower Combat Kills 33 Cogmind --------- Core Integrity 0/550 Matter 240/300 Energy 100/100 System Corruption 0% Temperature Cool (39) Movement Walking (190) Ox1 Location -8/Materials Parts ------- > --- POWER (2) -------- (None) > --- PROPULSION (3) --- Improved Carbon-fiber Leg Improved Carbon-fiber Leg > --- UTILITY (4) ------ High-capacity Storage Unit Targeting Computer > --- WEAPON (2) ------- Particle Gun Heavy Assault Rifle > --- INVENTORY (20) --- Particle Gun Gauss Rifle Gauss Rifle Mining Laser Peak State ------------ > --- POWER ------------ Light Ion Engine Light Nuclear Core > --- PROPULSION ------- Aluminum Leg Aluminum Leg Aluminum Leg > --- UTILITY ---------- High-capacity Storage Unit Improved Terrain Scanner > --- WEAPON ----------- Light Assault Rifle Assault Cannon > --- INVENTORY -------- Light Treads Particle Gun Particle Gun Gauss Rifle Mining Laser [Rating: 16] Favorites ----------- Power Ion Engine Engine Ion Engine Power Core Nuclear Core Propulsion Light Treads Treads Light Treads Leg Aluminum Leg Utility High-capacity Storage Unit Device Heat Sink Storage High-capacity Storage Unit Processor Targeting Computer Weapon Assault Rifle Energy Gun Advanced Beam Rifle Ballistic Gun Assault Rifle Ballistic Cannon Assault Cannon Build | -11 -10 -10 -9 -9 -8 ------- Run | Yrd Mat Min Mat Sto Mat Slots Evolved 4 | . . . 2 . 2 Power 1 | . . . 1 . . Propulsion 1 | . . . 1 . . Utility 2 | . . . . . 2 Weapon . | . . . . . . Parts Attached 45 | 5 2 3 3 12 20 Power 9 | 1 . . 2 2 4 Engine 7 | 1 . . 1 2 3 Core 2 | . . . 1 . 1 Reactor . | . . . . . . Propulsion 17 | 2 . 2 1 6 6 Treads 6 | 2 . . . 3 1 Leg 11 | . . 2 1 3 5 Wheel . | . . . . . . Hover . | . . . . . . Flight . | . . . . . . Utility 6 | . 2 . . 1 3 Device 4 | . 1 . . 1 2 Storage 1 | . 1 . . . . Processor 1 | . . . . . 1 Hackware . | . . . . . . Protection . | . . . . . . Artifact . | . . . . . . Weapon 13 | 2 . 1 . 3 7 Energy Gun 3 | . . . . 1 2 Energy Cannon . | . . . . . . Ballistic Gun 9 | 2 . 1 . 2 4 Ballistic Cannon 1 | . . . . . 1 Launcher . | . . . . . . Special Weapon . | . . . . . . Impact Weapon . | . . . . . . Slashing Weapon . | . . . . . . Piercing Weapon . | . . . . . . Special Melee Weapon . | . . . . . . Unidentified Prototypes 1 | . . . . . 1 Parts Lost 33 | . . 1 1 5 26 Power 7 | . . . . 2 5 Propulsion 13 | . . 1 . 3 9 Utility 4 | . . . . . 4 Weapon 9 | . . . 1 . 8 Highest Loss Streak 6 | . . 1 1 3 6 To Critical Strikes 1 | . . . . . 1 Average Backups 4 | . 1 5 6 7 6 Power 1 | . 1 1 1 1 . Propulsion 1 | . . 1 2 2 1 Utility . | . . . . . . Weapon 1 | . . 1 3 2 4 Tool/Special . | . . . . . . Unused Backups 6 | . 1 1 . . 4 Power . | . . . . . . Propulsion 1 | . . 1 . . . Utility . | . . . . . . Weapon 5 | . 1 . . . 4 Tool/Special . | . . . . . . Average Slot Usage (%) 86 | . 89 99 98 94 60 Engine 12 | . 14 14 11 16 5 Core 1 | . . . 11 2 1 Treads 15 | . 28 17 . 10 9 Leg 11 | . . 10 32 20 9 Device 9 | . 4 14 11 11 9 Storage 11 | . 13 14 11 11 9 Ballistic Gun 21 | . 28 28 21 21 9 Peak Build Rating 16 | 5 7 10 14 15 16 Average Rating 9 | 4 6 8 13 10 11 On Entrance 7 | . 5 7 10 13 9 Avg Prop Armor Cover (%) . | . . . . . . Naked Turns . | . . . . . . Heaviest Build 58 | 9 50 50 58 57 55 Greatest Support 60 | 40 40 40 35 60 60 Greatest Overweight (x) 15 | . 1 1 1 2 15 Average Overweight (x) . | . . 1 1 . 1 Largest Inventory Capacity 20 | 5 20 20 20 20 20 Average Capacity 19 | 5 19 20 20 20 20 Most Carried 11 | 2 2 9 7 11 8 Average Carried 4 | . 1 5 6 7 6 Final Capacity 20 | 5 20 20 20 20 20 Final Carried 8 | 1 1 8 7 7 4 Class Distribution -------------------- 68% | Mutant 31% | Scavenger-Mutant Dominant Class ---------------- Mutant | -10/Materials Mutant | -10/Mines Scavenger-Mutant | -9/Materials Scavenger-Mutant | -9/Storage Scavenger-Mutant | -8/Materials Resources | -11 -10 -10 -9 -9 -8 ----------- Run | Yrd Mat Min Mat Sto Mat Matter Collected 1203 | 156 176 138 14 318 401 Remotely 26 | . . . . . 26 Salvage Created 1843 | . 347 189 111 371 825 Parts 123 | . 30 17 7 19 50 Haulers Intercepted 1 | . . . . 1 . Recyclers Shooed 2 | . 2 . . . . Parts Field Recycled . | . . . . . . Retrieved Matter . | . . . . . . Parts Self-Destructed . | . . . . . . Prevented . | . . . . . . Parts Restored . | . . . . . . Kills | -11 -10 -10 -9 -9 -8 ------- Run | Yrd Mat Min Mat Sto Mat Combat Hostiles Destroyed 49 | . 10 8 2 7 22 Guns 40 | . 10 8 2 7 13 Cannons 7 | . . . . . 7 AOE 2 | . . . . . 2 Classes Destroyed 8 | . 3 . 1 1 3 Builder 3 | . . . . . 3 Hauler 1 | . . . . 1 . Recycler 1 | . . . . . 1 Watcher 2 | . 2 . . . . Swarmer 18 | . 3 6 . . 9 Grunt 21 | . 7 2 . 5 7 Sentry 7 | . . . 2 2 3 Specialist 3 | . . . . . 3 Best Kill Streak 5 | . 3 3 2 3 5 Combat Bots Only 5 | . 3 3 2 3 5 Max Kills in Single Turn 4 | . 1 2 1 1 4 Gunslinging 1 | . . 1 . . . Exploded 2 | . . . . . 2 Melee . | . . . . . . Uniques/NPCs Destroyed . | . . . . . . Combat | -11 -10 -10 -9 -9 -8 -------- Run | Yrd Mat Min Mat Sto Mat Hostile Shots Fired 439 | . 32 20 41 79 267 Missed 130 | . 12 5 14 16 83 Hits 309 | . 20 15 27 63 184 Projectile 309 | . 20 15 27 63 184 Critical Strikes 9 | . . . 1 2 6 Damage Taken 4266 | . 207 225 389 786 2659 Core 805 | . 54 34 70 91 556 Absorbed by Shields . | . . . . . . Core Remaining (%) 74 | 100 . 64 . 59 . Volleys Fired 187 | . 28 16 13 51 79 Largest 2 | . 2 2 2 2 2 Hottest 116 | . 40 40 40 40 116 Shots Fired 343 | . 56 32 24 101 130 Gun 315 | . 56 32 24 101 102 Cannon 28 | . . . . . 28 Launcher . | . . . . . . Special . | . . . . . . Kinetic 315 | . 56 32 24 101 102 Thermal 28 | . . . . . 28 Explosive . | . . . . . . Electromagnetic . | . . . . . . Robot Hit Streak 18 | . 12 6 4 18 7 Robot Miss Streak 4 | . 3 4 2 2 4 Penetration Max . | . . . . . . Secondary Targets 4 | . . 1 . . 3 Max Gunslinging Chain 1 | . . 1 . . 1 Shots Hit Robots 220 | . 34 17 16 74 79 Core Hits 102 | . 18 11 6 23 44 Critical Kills . | . . . . . . Critical Parts Destroyed 1 | . . . . 1 . Critical Strikes 5 | . . . . 1 4 Burn 4 | . . . . . 4 Destroy 1 | . . . . 1 . Melee Attacks . | . . . . . . Impact . | . . . . . . Slashing . | . . . . . . Piercing . | . . . . . . Sneak Attacks . | . . . . . . Combat Hostiles . | . . . . . . Follow-up Attacks . | . . . . . . Damage Inflicted 3201 | . 408 204 161 630 1798 Guns 2207 | . 401 204 161 619 822 Cannons 540 | . . . . . 540 Explosions 436 | . . . . . 436 Melee . | . . . . . . Ramming 18 | . 7 . . 11 . Kinetic 2452 | . 401 204 161 619 1067 Thermal 731 | . . . . . 731 Explosive . | . . . . . . Electromagnetic . | . . . . . . Impact . | . . . . . . Slashing . | . . . . . . Piercing . | . . . . . . Highest Corruption 1 | . . . . 1 . Average Corruption 1 | . . . . 1 . Corruption Purged . | . . . . . . Corruption Blocked . | . . . . . . Effects 7 | . . . . 7 . Message Errors 1 | . . . . 1 . Matter Fused 3 | . . . . 3 . Data Loss (minor) 1 | . . . . 1 . Data Loss (major) 1 | . . . . 1 . Weapon Failures 1 | . . . . 1 . Overload Shots . | . . . . . . Overflow Damage 132 | . . . . . 132 Projectiles 1 | . . . . . 1 Explosions 131 | . . . . . 131 Melee . | . . . . . . Knockbacks 5 | . . . . . 5 Impact . | . . . . . . Kinetic 4 | . . . . . 4 Secondary 1 | . . . . . 1 Self-Inflicted Damage . | . . . . . . Shots . | . . . . . . Rammed 2 | . 2 . . . . Targets Rammed 4 | . 2 . . 2 . Kicked 2 | . . . . 2 . Crushed . | . . . . . . Highest Temperature 177 | . . . 1 113 177 Average Temperature 40 | . . . 1 28 57 Received Heat Transfer 1386 | . 108 54 171 342 711 Siege Activations . | . . . . . . Martial Activations . | . . . . . . Shielding Activations . | . . . . . . Robots Disrupted . | . . . . . . Combat Hostiles . | . . . . . . Robots Corrupted . | . . . . . . Combat Hostiles . | . . . . . . Parts Fried . | . . . . . . Impact Corruptions 1 | . . . . . 1 Robots Melted . | . . . . . . Combat Hostiles . | . . . . . . Parts Melted 1 | . . . . . 1 Heat Transferred 1238 | . . . . . 1238 Parts Sabotaged . | . . . . . . Parts Stolen . | . . . . . . Parts Stripped . | . . . . . . Power Chain Reactions . | . . . . . . Alert | -11 -10 -10 -9 -9 -8 ------- Run | Yrd Mat Min Mat Sto Mat Maximum Alert Level 1 | . . . . . 1 Low Security (%) 96 | 100 100 100 100 100 85 Level 1 3 | . . . . . 14 Level 2 . | . . . . . . Level 3 . | . . . . . . Level 4 . | . . . . . . Level 5 . | . . . . . . High Security . | . . . . . . Max Security . | . . . . . . Peak Influence 227 | . 171 70 92 81 227 Initial 63 | . . 63 . 21 . Average 59 | . 49 22 41 26 145 Influence Increases 1484 | . 305 190 137 203 649 Destroy 0b10 Robot/C 1000 | . 200 160 60 140 440 Destroy 0b10 Robot/NC 40 | . 10 . 5 5 20 Destroy Leader 216 | . 34 30 30 32 90 Allied During Kill 12 | . . . 12 . . Successful Hack 25 | . 16 . . 9 . Disable Machine 90 | . . . . . 90 Destroy Structure 11 | . . . . 2 9 Partial Spotted 15 | . . . 15 . . Lose Combat Pursuer 75 | . 45 . 15 15 . Influence Decreases 1329 | . 142 353 85 255 494 Entered New Map 131 | . . 100 . 31 . Time Decay 869 | . 142 243 55 175 254 Lost Part 300 | . . 10 10 40 240 Lost Ally 20 | . . . 20 . . Purge Threat 9 | . . . . 9 . Squads Dispatched 8 | . 2 . . 1 5 Investigation 3 | . 2 . . 1 . Extermination . | . . . . . . Reinforcement 5 | . . . . . 5 Assault . | . . . . . . Garrison . | . . . . . . Intercept . | . . . . . . Searches Triggered . | . . . . . . Construction Impeded 1 | . . . . . 1 Haulers Reinforced . | . . . . . . Active Scanning Responses . | . . . . . . Cargo Convoy Interrupts . | . . . . . . Stealth | -11 -10 -10 -9 -9 -8 --------- Run | Yrd Mat Min Mat Sto Mat Distress Signals 3 | . . . 1 . 2 Communications Jammed . | . . . . . . Distress Signals . | . . . . . . Times Spotted 74 | . 11 8 9 14 32 Peak Tracking Total 7 | . 3 3 4 5 7 Tactical Retreats 5 | . 3 . 1 1 . Traps | -11 -10 -10 -9 -9 -8 ------- Run | Yrd Mat Min Mat Sto Mat Traps Triggered 5 | . 2 2 . 1 . Indirectly . | . . . . . . Trap Hack Attempts . | . . . . . . Triggered . | . . . . . . Disarmed . | . . . . . . Reprogrammed . | . . . . . . Reused . | . . . . . . Traps Extracted . | . . . . . . Installed . | . . . . . . Triggered . | . . . . . . Machines | -11 -10 -10 -9 -9 -8 ---------- Run | Yrd Mat Min Mat Sto Mat Machines Disabled 6 | . . . . . 6 Max in Single Turn 6 | . . . . . 6 Machines Repaired . | . . . . . . Machines Dismantled . | . . . . . . Machines Sabotaged . | . . . . . . Overloaded Fab Kills . | . . . . . . Hacking | -11 -10 -10 -9 -9 -8 --------- Run | Yrd Mat Min Mat Sto Mat Machines Accessed 12 | . 6 1 . 4 1 Terminals 9 | . 5 . . 4 . Fabricators . | . . . . . . Repair Stations . | . . . . . . Recycling Units 2 | . 1 . . . 1 Scanalyzers . | . . . . . . Garrison Access . | . . . . . . Total Hacks 30 | . 18 1 . 9 2 Successful 24 | . 14 1 . 7 2 Failed 6 | . 4 . . 2 . Catastrophic 2 | . 1 . . 1 . Database Lockouts . | . . . . . . Manual . | . . . . . . Terminals 24 | . 15 . . 9 . Fabricators . | . . . . . . Repair Stations . | . . . . . . Recycling Units 5 | . 3 . . . 2 Scanalyzers . | . . . . . . Garrison Access . | . . . . . . Terminal Hacks 19 | . 11 1 . 7 . Record 10 | . 8 . . 2 . Part Schematic 1 | . . . . 1 . Prototype ID Bank 2 | . 1 . . 1 . Open Door 2 | . . 1 . 1 . Alert Level 1 | . 1 . . . . Unreport Threat 1 | . . . . 1 . Zone Layout 2 | . 1 . . 1 . Fabricator Hacks . | . . . . . . Repair Station Hacks . | . . . . . . Recycling Unit Hacks 5 | . 3 . . . 2 Recycle Component 1 | . 1 . . . . Process 2 | . 1 . . . 1 Report Inventory 2 | . 1 . . . 1 Scanalyzer . | . . . . . . Garrison Access Hacks . | . . . . . . Unauthorized Hacks . | . . . . . . Terminals . | . . . . . . Fabricators . | . . . . . . Repair Stations . | . . . . . . Recycling Units . | . . . . . . Scanalyzers . | . . . . . . Garrison Access . | . . . . . . Data Cores Recovered . | . . . . . . Used . | . . . . . . Hacking Detections 4 | . 3 . . 1 . Full Trace Events 4 | . 3 . . 1 . Feedback Events 1 | . . . . 1 . Corruption 1 | . . . . 1 . Feedback Blocked . | . . . . . . Robot Schematics Acquired . | . . . . . . Robots Built . | . . . . . . Authchips . | . . . . . . Time . | . . . . . . Total Robot Build Rating . | . . . . . . Part Schematics Acquired 1 | . . . . 1 . Parts Built . | . . . . . . Authchips . | . . . . . . Time . | . . . . . . Total Part Build Rating . | . . . . . . Part Studies Acquired . | . . . . . . Parts Repaired . | . . . . . . Time . | . . . . . . Parts Recycled 1 | . 1 . . . . Recycled Matter 101 | . 72 . . . 29 Retrieved Matter . | . . . . . . Retrieved Components . | . . . . . . Parts Scanalyzed . | . . . . . . Part Schematics Acquired . | . . . . . . Parts Damaged . | . . . . . . Bothacking | -11 -10 -10 -9 -9 -8 ------------ Run | Yrd Mat Min Mat Sto Mat Used RIF Installer . | . . . . . . Robots Hacked . | . . . . . . Non-combat . | . . . . . . Combat . | . . . . . . Robot Hacks Applied . | . . . . . . Relay Couplers Released . | . . . . . . Fabnet Peak Effective % . | . . . . . . Robots Rewired . | . . . . . . Allies Hacked . | . . . . . . Hacks Repelled . | . . . . . . Allies | -11 -10 -10 -9 -9 -8 -------- Run | Yrd Mat Min Mat Sto Mat Total Allies 2 | . . 2 . . . Largest Group 2 | . . 2 2 1 . Highest-Rated Group 45 | . . 45 45 14 . Highest-Rated Ally 31 | . . 31 31 14 . Total Orders . | . . . . . . Ally Attacks 11 | . . . 11 . . Total Damage 147 | . . . 147 . . Kills 2 | . . . 2 . . Allies Corrupted . | . . . . . . Allies Melted . | . . . . . . Intel | -11 -10 -10 -9 -9 -8 ------- Run | Yrd Mat Min Mat Sto Mat Active Infowar (turns) 807 | . . . . 463 344 Terrain 277 | . . . . . 277 Seismic 530 | . . . . 463 67 Robot Analysis Total . | . . . . . . Derelict Logs Recovered 1 | . . 1 . . . Drone Launches . | . . . . . . Drone Recoveries . | . . . . . . Exploration | -11 -10 -10 -9 -9 -8 ------------- Run | Yrd Mat Min Mat Sto Mat Turns Passed 2675 | 65 556 746 150 511 647 Spaces Moved 982 | 37 196 312 59 198 180 Core 9 | 4 . . . . 5 Treads 596 | 33 196 172 . 108 87 Legs 377 | . . 140 59 90 88 Wheels . | . . . . . . Hover . | . . . . . . Flight . | . . . . . . Fastest Speed 50 | 50 160 190 190 160 160 Average Speed 208 | 148 236 217 190 173 221 Slowest Speed 800 | 160 240 240 190 260 800 Overloaded Moves . | . . . . . . Propulsion Burnouts . | . . . . . . Robots Hopped . | . . . . . . Potential Cave-ins . | . . . . . . Cave-ins Triggered . | . . . . . . Exploration Rate (%) 28 | 3 34 61 11 32 27 Regions Visited 5 Branch Regions 2 Pre-discovered Areas 1 | . . 1 . . . Known Exits Taken . | . . . . . . Unknown Exits Taken 5 | 1 1 1 1 1 . Scrap Searched . | . . . . . . Spaces Dug . | . . . . . . Terrain Destroyed 9 | . . . . . 9 Melee . | . . . . . . Projectile 1 | . . . . . 1 AOE 8 | . . . . . 8 Terrain Rammed . | . . . . . . Walls Destroyed . | . . . . . . Machines Disabled . | . . . . . . Actions | -11 -10 -10 -9 -9 -8 --------- Run | Yrd Mat Min Mat Sto Mat Total 1289 | 47 230 348 75 279 310 Wait 12 | . . 6 . . 6 Move 977 | 36 195 311 58 197 180 Hop . | . . . . . . Pick Up 51 | 6 3 10 1 10 21 Fast Attach . | . . . . . . Attach 39 | 5 2 1 2 5 24 Detach . | . . . . . . Swap 12 | . . 2 1 9 . Drop 7 | . . 2 . 5 . Fire 187 | . 28 16 13 51 79 Melee . | . . . . . . Ram . | . . . . . . Kick 2 | . . . . 2 . Crush 2 | . 2 . . . . Escape Stasis . | . . . . . . Rewire . | . . . . . . Trap . | . . . . . . Miscellaneous . | . . . . . . Route ------- -11/Scrapyard -10/Materials -10/Mines -9/Materials -9/Storage -8/Materials History --------- Turn | Location | Event 24 | -11/Scrapyard | Discovered new exit (range 16) 66 | -11/Scrapyard | Entered Materials 310 | -10/Materials | Build established: Mutant 317 | -10/Materials | Discovered new exit (range 15) 622 | -10/Materials | Entered Mines 654 | -10/Mines | Learned location of Zion (-7) 684 | -10/Mines | Met a Derelict who couldn't figure out how to use a Trap Extractor 1344 | -10/Mines | Discovered new exit (range 13) 1368 | -10/Mines | Entered Materials 1368 | -9/Materials | Accompanied by 2 allies 1368 | -9/Materials | Evolved 2 slots: Power x1, Propulsion x1 1373 | -9/Materials | Led the pair of lost Derelicts to an unsafe place 1500 | -9/Materials | Discovered new exit (range 6) 1518 | -9/Materials | Entered Storage 1518 | -9/Storage | Accompanied by 1 ally 1664 | -9/Storage | Build established: Scavenger-Mutant 1680 | -9/Storage | Lost 3 parts (1p2n) 2008 | -9/Storage | Discovered new exit (range 14) 2029 | -9/Storage | Entered Materials 2029 | -8/Materials | Evolved 2 slots: Utility x2 2141 | -8/Materials | Lost 4 parts (1p1u2w) 2267 | -8/Materials | Lost 3 parts (2n1w) 2384 | -8/Materials | Lost 5 parts (1p1n2u1w) 2470 | -8/Materials | Lost 3 parts (1p1n1w) 2547 | -8/Materials | Core integrity fell below 50% 2589 | -8/Materials | Lost 6 parts (1p2n1u2w) 2593 | -8/Materials | Core integrity fell below 20% 2631 | -8/Materials | Lost 3 parts (2n1w) 2676 | -8/Materials | Destroyed by X-57 Shotgunner with Shotgun Last Messages --------------- K-01 Serf collects debris. R-06 Scavenger collects Particle Gun. U-05 Engineer lays Concrete. K-01 Serf collects debris. U-05 Engineer lays Concrete. K-01 Serf collects debris. X-57 Shotgunner suffers critical hit (Burn). K-01 Serf collects debris. U-05 Engineer lays Concrete. X-57 Shotgunner suffers critical hit (Burn). U-05 Engineer lays Concrete. K-01 Serf collects debris. U-05 Engineer lays Concrete. Shotgun melted. X-57 Shotgunner destroyed. Switching to secondary target: X-57 Shotgunner. K-01 Serf collects debris. U-05 Engineer lays Concrete. X-57 Shotgunner suffers critical hit (Burn). Ion Engine destroyed. Map ----- +----------------------------------------------------+ | | | | | | | | | | | ?????????????????????????????????????????????????? | | ?????????????????????????????????????????????????? | | ?????????????????????????????????????????????????? | | ?????????????????????????????????????????????????? | | ?????????????????????????????????????????????????? | | ?????????????????????????????????????????????????? | | ????????????????H????????????????????????????????? | | ???????????"?????????????????????????????????????? | | ?????????? ???? ???????#?????????????????????????? | | ?? ?????????????????????????????????????????????? | | ????????????????????????? ???????????????????????? | | ???????????#??????? ?????? ??????????????????????? | | ??????##???????##??#?????????????????????????????? | | ?????# """ """ #??? ????? ?#???????????????????? | | ? ??# """""""""?????? ????? #???????????????????? | | ?????? """"" ??????????? #???????????????????? | | ??? ?? ?????????#? #???????????????????? | | ????????? ! ???? ????#? #???????????????????? | | ? ? ?????? ! ??? ?????? #???????????????????? | | ???????? ??? ???#????##%x ##??????????????????? | | ##############+##########@ ###????????????????? | | % ?????????? | | !!! T ????????? | | %= ! !%! o ?????????? | | ##############+# ;##### ##########?????????? | | ?????##" k ! "#?## ##??????????????????? | | ?#???# " "##?? #???????????????????? | | #????# " u " #?? #???????????????????? | | #????# " ""#?? +???????????????????? | | ??##?# " " #???????????????????? | | ???####" ""### #???????????????????? | | ??????#""" """ #?? #???????????????????? | | ???? " ##??? #???????????????????? | | ?? ? #### ## # #???? #???????????????????? | | ?? """ #??######?####???? ??????????????###### | | ??""""" #?#???????????????#????????????????# | | ??"?""" #?#???########?????????????????????# | | ??""" ?????##]][[]]#?????????????????????# "" | | ???""" ???????#]] []]#?????????????????????# Y" | | ???? ???????## #?????????????????????# "" | | ####+########### #################?????# | | *!%[*=!%= = ##########+# | | [!%!% = ! | | [%*= ! = | | ##+############## | +----------------------------------------------------+ Best States ------------- Heat Dissipation 41 Energy Generation 21 Energy Capacity 415 Matter Stores 300 Matter Capacity 300 Sight Range 16 Terrain Scan Range 16 Terrain Scan Density 10 Evasion (%) 40 Targeting Accuracy 5 Recoil Reduction 3 Item Schematics ----------------- Great Maul | -9/Storage | Hacked Robot Schematics ------------------ None Fabricated ------------ Nothing Repaired ---------- Nothing Studied --------- None Alien Tech Used ----------------- None Achievements -------------- None Challenges ------------ None Game ------ Seed WardroneCouplerDriveblaster Manual? 0 Play Time 00:51:17 Cumulative 23.5 hours Start 2026.07.26 @ 20:15:17 End 2026.07.27 @ 04:43:59 Sessions 3 Manual Loads 0 Difficulty Rogue Special Mode None Game No. 44 Rogue 44 Adventurer 0 Explorer 0 Win Type - Total 0 Types 0/0/0/0/0/0/0/0/0/0 Lore% 10 Gallery% 19 Achievement% 13 Wizard Run 0 Options --------- Layout 1 ASCII 0 Keyboard 0 Movement Numpad Keybinds 0 Fullscreen 1 Font 32/SmallcapsGlow Map View 50x35 Zoom Use 0% Tactical HUD 0 Map Filters NONE Filters NONE Steam 1 RUN: ba2588ef-29cf-4a82-a050-526940de43d9